bitfinex/quotes_SOLUSD_20241231
["timestamp","ask_amount","ask_price","bid_price","bid_amount"]
[1735607616113,2.008,189.56,189.42,15.08522276]
[1735607616310,2.008,189.56,189.43,15.08522276]
[1735607616477,2.008,189.56,189.44,15.08522276]
[1735607616809,2.008,189.56,189.45,15.08522276]
[1735607617009,2.008,189.56,189.48,15.08522276]
[1735607618287,2.008,189.56,189.49,15.08522276]
[1735607618996,2.008,189.56,189.5,15.08522276]
[1735607620400,2.008,189.56,189.49,15.87646767]
[1735607623318,2.008,189.56,189.48,15.08522276]
[1735607623923,2.008,189.56,189.45,15.08522276]
[1735607624289,2.008,189.56,189.44,15.08522276]
[1735607625320,2.6378,189.55,189.41,15.08522276]
[1735607625807,2.6378,189.55,189.42,15.08522276]
[1735607626395,2.6378,189.55,189.43,15.08522276]
[1735607626713,2.6378,189.55,189.42,15.08522276]
[1735607627796,2.6378,189.55,189.43,15.08522276]
[1735607628627,2.008,189.56,189.46,15.08522276]
[1735607628802,2.008,189.56,189.44,0.79154851]
[1735607628803,2.008,189.56,189.47,15.08522276]
[1735607629291,2.008,189.56,189.46,15.08522276]
[1735607630020,2.008,189.56,189.45,15.08522276]
[1735607630395,2.008,189.56,189.44,15.08522276]
[1735607630396,23.776884,189.56,189.44,15.08522276]
[1735607631088,23.776884,189.56,189.43,15.08522276]
[1735607632524,23.776884,189.52,189.38,15.08522276]
[1735607632999,23.776884,189.52,189.37,15.08522276]
[1735607633200,23.776884,189.52,189.38,15.08522276]
[1735607633623,8.3813,189.51,189.38,15.08522276]
[1735607633823,11.0197,189.51,189.38,15.08522276]
[1735607634032,11.0197,189.51,189.39,15.08522276]
[1735607634214,8.3813,189.51,189.41,15.08522276]
[1735607634921,8.3813,189.51,189.44,15.08522276]
[1735607635424,8.3813,189.51,189.46,15.08522276]
[1735607636012,8.3813,189.51,189.44,0.79148462]
[1735607636013,8.3813,189.51,189.45,15.08522276]
[1735607636629,8.3813,189.51,189.46,15.08522276]
[1735607638120,8.3813,189.51,189.45,15.08522276]
[1735607638413,8.3813,189.51,189.46,15.08522276]
[1735607639922,2.1572,189.51,189.47,15.87663224]
[1735607640128,2.1572,189.55,189.47,15.87663224]
[1735607640315,2.1572,189.55,189.48,15.08522276]
[1735607640516,2.1572,189.55,189.49,15.08522276]
[1735607640826,2.1572,189.55,189.5,15.87654533]
[1735607641333,2.1572,189.6,189.51,15.08522276]
[1735607641526,2.1572,189.6,189.52,15.87636623]
[1735607641833,2.1572,189.6,189.56,15.08522276]
[1735607642013,2.1572,189.6,189.55,15.08522276]
[1735607642206,2.1572,189.6,189.56,0.79101197]
[1735607642405,2.1572,189.6,189.56,15.87623473]
[1735607642724,6.2241,189.63,189.59,15.08522276]
[1735607643031,2.1572,189.65,189.61,15.08522276]
[1735607643323,2.1572,189.65,189.62,0.79076469]
[1735607643701,6.2241,189.68,189.62,0.79076469]
[1735607644599,6.2241,189.68,189.59,15.08522276]
[1735607644801,6.2241,189.68,189.59,20.0]
[1735607645001,6.2241,189.68,189.6,20.0]
[1735607645813,6.2241,189.68,189.56,15.08522276]
[1735607646029,23.776884,189.67,189.55,15.87609361]
[1735607646217,26.412984,189.67,189.54,15.08522276]
[1735607646432,26.412984,189.67,189.57,20.0]
[1735607646621,2.6361,189.67,189.57,20.0]
[1735607647337,6.2241,189.68,189.57,20.0]
[1735607647543,6.2241,189.68,189.57,15.08522276]
[1735607648039,6.2241,189.68,189.56,15.87613448]
[1735607648419,6.2241,189.68,189.59,20.0]
[1735607648617,6.2241,189.68,189.63,15.08522276]
[1735607648959,6.2241,189.68,189.64,0.79075848]
[1735607649135,6.2241,189.68,189.62,15.08522276]
[1735607649342,6.2241,189.68,189.63,0.79072432]
[1735607650137,6.2241,189.68,189.63,15.87594708]
[1735607650634,2.1572,189.69,189.64,15.08522276]
[1735607650820,2.1572,189.69,189.64,15.87585826]
[1735607651231,2.1572,189.69,189.65,15.08522276]
[1735607651414,8.2082,189.73,189.65,15.08522276]
[1735607651615,8.2082,189.73,189.64,15.87585826]
[1735607651817,8.2082,189.73,189.64,0.7906355]
[1735607652939,8.2082,189.73,189.62,15.08522276]
[1735607653129,23.776884,189.72,189.59,15.08522276]
[1735607653327,23.776884,189.7,189.55,0.79075511]
[1735607653530,23.776884,189.68,189.54,15.08522276]
[1735607653717,23.776884,189.66,189.53,15.08522276]
[1735607653916,23.776884,189.66,189.54,0.79110671]
[1735607654125,23.776884,189.66,189.53,15.08522276]
[1735607654332,23.776884,189.66,189.54,15.08522276]
[1735607655039,23.776884,189.66,189.55,0.79100883]
[1735607655232,1.9596,189.67,189.57,15.08522276]
[1735607655441,1.9596,189.67,189.6,35.08522276]
[1735607656525,1.9596,189.67,189.59,15.08522276]
[1735607657230,1.9596,189.67,189.58,15.08522276]
[1735607657431,1.9596,189.67,189.61,20.0]
[1735607657631,1.9596,189.67,189.56,15.08522276]
[1735607657837,23.776884,189.66,189.51,13.1918]
[1735607658036,23.776884,189.64,189.52,15.08522276]
[1735607658238,23.776884,189.64,189.55,20.0]
[1735607658433,23.776884,189.64,189.56,20.0]
[1735607658743,23.776884,189.64,189.51,29.06817971]
[1735607658957,23.776884,189.64,189.55,20.0]
[1735607659127,23.776884,189.64,189.51,15.87637971]
[1735607659333,23.776884,189.64,189.51,15.08522276]
[1735607659536,23.776884,189.64,189.54,20.0]
[1735607660147,23.776884,189.64,189.52,15.08522276]
[1735607660441,23.776884,189.64,189.51,44.91328163]
[1735607661028,23.776884,189.64,189.52,24.12215776]
[1735607661649,23.776884,189.64,189.53,24.12215776]
[1735607662345,23.776884,189.64,189.52,24.12215776]
[1735607663133,23.776884,189.64,189.53,24.12215776]
[1735607663335,23.776884,189.64,189.53,24.91327425]
[1735607663542,23.776884,189.64,189.54,24.12215776]
[1735607663847,23.776884,189.64,189.53,44.91327425]
[1735607664553,6.2486,189.65,189.54,24.12215776]
[1735607665350,6.2486,189.65,189.56,24.12215776]
[1735607665547,6.2486,189.65,189.55,44.91319233]
[1735607666047,6.2486,189.65,189.57,44.12215776]
[1735607666653,6.2486,189.65,189.57,20.0]
[1735607667837,1.9669,189.63,189.52,24.12215776]
[1735607668149,1.9669,189.63,189.51,24.12215776]
[1735607668355,1.9669,189.63,189.52,24.12215776]
[1735607668535,1.9669,189.63,189.53,24.12215776]
[1735607668737,1.9669,189.63,189.52,24.12215776]
[1735607669136,1.9669,189.63,189.53,24.12215776]
[1735607670344,1.9669,189.63,189.54,24.91326645]
[1735607670546,1.9669,189.63,189.55,24.12215776]
[1735607670953,1.9669,189.63,189.53,24.12215776]
[1735607671533,1.9669,189.63,189.52,24.12215776]
[1735607672360,23.776884,189.59,189.44,13.1966]
[1735607672663,23.776884,189.6,189.44,37.31875776]
[1735607672852,23.776884,189.6,189.45,24.12215776]
[1735607673056,23.776884,189.6,189.46,24.91355758]
[1735607673272,23.776884,189.6,189.49,24.12215776]
[1735607674037,23.776884,189.6,189.49,24.91339702]
[1735607674446,8.2115,189.61,189.5,13.1926]
[1735607674652,8.2115,189.61,189.53,24.12215776]
[1735607675141,8.2115,189.61,189.51,24.91342242]
[1735607675347,8.2115,189.61,189.51,24.12215776]
[1735607678288,8.2115,189.61,189.48,0.79119359]
[1735607678289,8.2115,189.61,189.53,24.12215776]
[1735607680173,8.2115,189.61,189.52,24.12215776]
[1735607681643,8.2115,189.61,189.51,24.12215776]
[1735607682138,8.2115,189.61,189.53,24.12215776]
[1735607682361,8.2115,189.61,189.53,15.07551153]
[1735607683463,8.2115,189.61,189.54,15.07551153]
[1735607683663,8.2115,189.61,189.56,15.07551153]
[1735607683982,8.2115,189.61,189.57,15.07551153]
[1735607684166,2.0744,189.65,189.59,15.07551153]
[1735607685055,2.0744,189.65,189.56,15.07551153]
[1735607685467,2.0744,189.65,189.57,15.07551153]
[1735607687071,2.0744,189.65,189.58,15.07551153]
[1735607692593,2.0744,189.65,189.54,15.86645451]
[1735607692903,2.0744,189.65,189.54,15.07551153]
[1735607695103,2.0744,189.65,189.55,15.07551153]
[1735607696488,2.0744,189.65,189.56,15.07551153]
[1735607696873,2.0744,189.65,189.6,15.07551153]
[1735607697188,2.0744,189.65,189.59,15.07551153]
[1735607698497,2.0744,189.65,189.57,20.79103178]
[1735607698793,2.0744,189.65,189.57,20.0]
[1735607698984,23.776884,189.64,189.57,20.0]
[1735607699297,23.776884,189.64,189.51,15.07551153]
[1735607699705,23.776884,189.62,189.51,15.07551153]
[1735607700314,23.776884,189.62,189.48,13.98481071]
[1735607700315,2.099,189.61,189.5,15.07551153]
[1735607700477,2.099,189.61,189.51,15.07551153]
[1735607700878,2.099,189.61,189.5,15.86671498]
[1735607703009,23.776884,189.58,189.5,0.79120345]
[1735607703312,23.776884,189.56,189.44,15.07551153]
[1735607704102,23.776884,189.54,189.43,15.07551153]
[1735607704310,6.1781,189.55,189.45,15.07551153]
[1735607704600,6.1781,189.55,189.47,15.07551153]
[1735607704806,6.1781,189.55,189.46,35.8669228]
[1735607706105,6.1781,189.55,189.46,20.0]
[1735607706317,2.0807,189.53,189.42,15.07551153]
[1735607706498,23.776884,189.52,189.4,15.07551153]
[1735607706694,2.0807,189.49,189.39,0.79148202]
[1735607707205,2.0807,189.49,189.4,15.07551153]
[1735607707608,2.0807,189.49,189.39,15.07551153]
[1735607707811,2.0807,189.49,189.4,0.7916612]
[1735607708117,23.776884,189.46,189.36,15.07551153]
[1735607708411,23.776884,189.46,189.35,15.86726329]
[1735607708613,23.776884,189.46,189.36,15.07551153]
[1735607708913,23.776884,189.46,189.37,0.79179875]
[1735607710089,23.776884,189.46,189.36,0.79183285]
[1735607711012,23.776884,189.46,189.35,0.79184301]
[1735607712222,23.776884,189.44,189.35,0.79184301]
[1735607712388,23.776884,189.42,189.29,15.07551153]
[1735607712695,23.776884,189.42,189.3,0.79211763]
[1735607714613,30.181484,189.4,189.28,15.86763035]
[1735607714793,23.776884,189.38,189.26,0.79218798]
[1735607714996,23.776884,189.38,189.2,2.054]
[1735607714997,23.776884,189.38,189.24,15.07551153]
[1735607715288,6.4046,189.37,189.27,15.07551153]
[1735607715491,6.4046,189.37,189.29,15.07551153]
[1735607715694,6.4046,189.37,189.27,15.86764825]
[1735607715992,6.4046,189.37,189.28,15.07551153]
[1735607716196,6.4046,189.37,189.27,0.79213672]
[1735607716399,23.776884,189.36,189.26,15.07551153]
[1735607717099,6.4046,189.37,189.27,15.86776522]
[1735607717417,6.4046,189.37,189.28,15.07551153]
[1735607717590,6.4046,189.37,189.27,15.86776522]
[1735607717793,23.776884,189.36,189.26,15.07551153]
[1735607718094,23.776884,189.36,189.25,35.07551153]
[1735607718712,6.4046,189.37,189.26,15.07551153]
[1735607719297,23.776884,189.36,189.26,15.07551153]
[1735607719510,23.776884,189.36,189.25,20.0]
[1735607719695,26.417284,189.36,189.25,20.0]
[1735607719895,26.417284,189.36,189.23,15.07551153]
[1735607720101,6.6021,189.33,189.21,15.07551153]
[1735607720416,23.776884,189.32,189.21,20.0]
[1735607720617,23.776884,189.32,189.2,15.07551153]
[1735607720803,23.776884,189.32,189.21,0.79246015]
[1735607721315,23.776884,189.32,189.19,15.86798915]
[1735607721528,6.6021,189.33,189.25,15.07551153]
[1735607721820,6.6021,189.33,189.25,15.86775183]
[1735607722719,6.6021,189.33,189.25,15.07551153]
[1735607723029,6.6021,189.33,189.24,35.07551153]
[1735607723314,6.6021,189.33,189.24,20.0]
[1735607723690,6.6021,189.33,189.22,15.86778436]
[1735607725019,26.417984,189.32,189.18,15.07551153]
[1735607725317,23.776884,189.3,189.18,20.0]
[1735607725523,20.0,189.28,189.15,28.29221153]
[1735607725821,6.6021,189.27,189.16,0.7926502]
[1735607726200,2.1333,189.26,189.16,0.7926502]
[1735607726402,23.776884,189.25,189.14,15.86821556]
[1735607726610,2.1333,189.26,189.16,20.0]
[1735607726823,2.1333,189.26,189.16,35.86813242]
[1735607727618,2.1333,189.26,189.16,20.79262089]
[1735607728026,2.1333,189.26,189.16,35.86813242]
[1735607729934,2.1333,189.26,189.19,15.07551153]
[1735607730113,2.1333,189.26,189.2,0.79245573]
[1735607734450,2.1333,189.26,189.17,0.79245228]
[1735607734632,2.1333,189.26,189.14,15.86824838]
[1735607734951,2.1333,189.26,189.16,15.07551153]
[1735607735150,2.1333,189.26,189.14,0.79273685]
[1735607735151,2.1333,189.26,189.15,15.07551153]
[1735607735836,2.1333,189.26,189.14,15.86824838]
[1735607736531,2.1333,189.26,189.14,0.79273685]
[1735607736725,2.1333,189.26,189.14,15.86824838]
[1735607737034,2.1333,189.26,189.15,15.07551153]
[1735607737239,2.1333,189.26,189.18,15.07551153]
[1735607737442,2.1333,189.26,189.18,15.86803658]
[1735607740163,2.1333,189.26,189.19,15.07551153]
[1735607742034,2.1333,189.26,189.18,15.86803658]
[1735607744231,2.1333,189.26,189.18,0.79252505]
[1735607744439,2.1333,189.26,189.15,15.07551153]
[1735607745752,2.1333,189.26,189.16,15.86823361]
[1735607746356,2.1333,189.26,189.14,15.07551153]
[1735607746646,26.418884,189.25,189.12,15.07551153]
[1735607746823,8.3291,189.24,189.11,15.07551153]
[1735607747352,8.3291,189.24,189.1,29.08843795]
[1735607747646,2.1182,189.22,189.09,15.07551153]
[1735607748016,2.1182,189.22,189.1,0.79294368]
[1735607748216,2.1182,189.22,189.1,15.86845521]
[1735607749150,2.1182,189.22,189.11,15.07551153]
[1735607749456,2.1182,189.22,189.12,15.86830763]
[1735607749764,2.1182,189.22,189.11,15.07551153]
[1735607749966,2.1182,189.22,189.1,15.07551153]
[1735607750628,6.1244,189.21,189.1,15.07551153]
[1735607750827,1.998,189.2,189.09,15.86834215]
[1735607751745,1.998,189.2,189.1,15.07551153]
[1735607753055,1.998,189.2,189.09,15.86839803]
[1735607753238,1.998,189.2,189.1,15.07551153]
[1735607753554,1.998,189.2,189.09,15.86839803]
[1735607754744,1.998,189.2,189.09,15.07551153]
[1735607757253,1.998,189.2,189.07,15.07551153]
[1735607757443,6.1244,189.18,189.06,15.86846769]
[1735607757650,1.998,189.17,189.06,15.86846769]
[1735607759358,8.1224,189.16,189.06,0.79295616]
[1735607759537,8.1224,189.16,189.05,35.07551153]
[1735607759951,8.1224,189.16,189.06,15.07551153]
[1735607760256,8.1224,189.16,189.09,15.07551153]
[1735607760629,8.1224,189.16,189.1,15.07551153]
[1735607761666,8.1224,189.16,189.09,15.07551153]
[1735607761959,8.1224,189.16,189.12,15.07551153]
[1735607762758,8.1224,189.16,189.11,15.07551153]
[1735607765262,8.1224,189.16,189.09,15.07551153]
[1735607765737,8.1224,189.16,189.03,0.79282883]
[1735607765738,8.1224,189.16,189.08,15.07551153]
[1735607766141,8.1224,189.16,189.07,15.07551153]
[1735607767151,8.1224,189.16,189.05,35.07551153]
[1735607768443,8.1224,189.16,189.06,0.7930554]
[1735607770337,8.1224,189.16,189.04,15.86863399]
[1735607770653,8.1224,189.16,188.97,2.1267]
[1735607770654,2.1326,189.12,189.01,15.86863435]
[1735607771032,2.1326,189.12,189.02,15.07551153]
[1735607771237,2.1326,189.12,189.03,0.79322063]
[1735607771955,2.1326,189.12,189.03,15.86873216]
[1735607773970,2.1326,189.12,189.04,15.07551153]
[1735607774147,2.1326,189.12,189.0,23.22740891]
[1735607774148,2.1326,189.12,189.08,15.07551153]
[1735607774662,2.1326,189.24,189.11,15.07551153]
[1735607774957,2.1326,189.24,189.12,0.79282907]
[1735607775271,20.0,189.22,189.12,0.79282907]
[1735607775561,8.6834,189.21,189.12,0.79282907]
[1735607776061,6.5508,189.21,189.08,15.07551153]
[1735607776239,2.1326,189.18,189.06,15.07551153]
[1735607776590,2.1326,189.18,189.08,15.07551153]
[1735607776856,2.1326,189.18,189.09,15.868458]
[1735607777047,2.1326,189.18,189.09,0.79294647]
[1735607777551,2.1326,189.18,189.1,15.07551153]
[1735607777877,2.1326,189.18,189.11,15.86834452]
[1735607778377,2.1326,189.18,189.13,15.07551153]
[1735607778541,2.1326,189.18,189.14,0.79274597]
[1735607778963,2.1326,189.18,189.14,15.8682575]
[1735607779549,8.3811,189.26,189.16,15.07551153]
[1735607779763,8.3811,189.26,189.17,15.07551153]
[1735607779970,8.3811,189.26,189.21,15.07551153]
[1735607780146,8.3811,189.26,189.19,15.07551153]
[1735607780343,8.3811,189.26,189.18,15.8679574]
[1735607780549,8.3811,189.26,189.18,0.79244587]
[1735607780955,8.3811,189.26,189.18,15.8679574]
[1735607781274,8.3811,189.26,189.19,15.07551153]
[1735607781454,8.3811,189.26,189.2,15.86802024]
[1735607781658,8.3811,189.26,189.21,15.07551153]
[1735607781855,8.3811,189.26,189.22,15.86790613]
[1735607782066,2.0354,189.3,189.24,15.07551153]
[1735607782281,2.0354,189.3,189.25,15.86778586]
[1735607783667,2.0354,189.3,189.27,15.07551153]
[1735607783851,8.3811,189.38,189.28,0.79221095]
[1735607784255,8.3811,189.38,189.26,15.07551153]
[1735607784674,8.3811,189.38,189.27,0.79218266]
[1735607785059,8.3811,189.38,189.28,15.07551153]
[1735607785453,8.3811,189.38,189.29,0.79212779]
[1735607785969,8.3811,189.38,189.3,15.07551153]
[1735607786173,8.3811,189.38,189.32,15.07551153]
[1735607786365,8.3811,189.38,189.33,15.8674486]
[1735607786559,2.0354,189.38,189.34,15.07551153]
[1735607786764,2.0354,189.38,189.35,0.79185155]
[1735607787371,2.0354,189.38,189.35,15.86736308]
[1735607787976,8.3811,189.43,189.35,15.86736308]
[1735607788167,8.3811,189.43,189.38,15.07551153]
[1735607788370,8.3811,189.43,189.39,15.07551153]
[1735607788561,8.3811,189.48,189.4,15.07551153]
[1735607789268,8.3811,189.48,189.4,15.86711533]
[1735607790083,8.3811,189.48,189.41,15.07551153]
[1735607790458,8.3811,189.48,189.44,15.07551153]
[1735607790696,8.3811,189.53,189.45,15.07551153]
[1735607791153,8.3811,189.53,189.46,15.07551153]
[1735607791469,8.3811,189.53,189.42,15.07551153]
[1735607791868,23.776884,189.51,189.37,0.79154276]
[1735607792060,20.0,189.48,189.34,15.86719614]
[1735607792261,8.3811,189.46,189.34,0.79168461]
[1735607792479,8.3811,189.46,189.27,21.28261153]
[1735607792480,23.776884,189.45,189.31,15.07551153]
[1735607792680,23.776884,189.45,189.3,15.86744546]
[1735607792888,23.776884,189.45,189.3,0.79193393]
[1735607793067,23.776884,189.45,189.32,15.07551153]
[1735607793383,23.776884,189.45,189.34,15.07551153]
[1735607793579,8.3811,189.46,189.34,15.07551153]
[1735607793797,8.3811,189.46,189.36,15.07551153]
[1735607793991,8.3811,189.46,189.37,15.86731124]
[1735607794174,8.3811,189.46,189.38,15.07551153]
[1735607794374,8.3811,189.46,189.36,15.07551153]
[1735607794674,8.3811,189.46,189.37,15.07551153]
[1735607794871,8.3811,189.46,189.37,15.86731501]
[1735607795200,8.3811,189.46,189.39,15.07551153]
[1735607795505,8.3811,189.46,189.4,15.07551153]
[1735607795893,8.3811,189.46,189.37,0.79180348]
[1735607796199,8.3811,189.46,189.37,15.07551153]
[1735607796562,8.3811,189.46,189.38,15.07551153]
[1735607797790,8.3811,189.46,189.37,15.86725692]
[1735607798767,8.3811,189.46,189.38,15.07551153]
[1735607798974,8.3811,189.46,189.4,15.07551153]
[1735607799271,6.3457,189.46,189.41,15.07551153]
[1735607799481,6.2322,189.5,189.41,15.07551153]
[1735607799789,6.2322,189.5,189.39,15.07551153]
[1735607800170,6.2322,189.5,189.4,15.07551153]
[1735607800370,6.2322,189.5,189.39,15.07551153]
[1735607800594,6.2322,189.5,189.4,15.07551153]
[1735607801396,6.2322,189.5,189.39,15.07551153]
[1735607801585,6.2322,189.5,189.37,0.79162354]
[1735607801586,23.776884,189.49,189.37,15.86713507]
[1735607801784,23.776884,189.49,189.38,15.07551153]
[1735607801984,6.2322,189.5,189.4,15.07551153]
[1735607802183,6.2322,189.5,189.39,0.79173164]
[1735607802383,6.2322,189.5,189.38,15.07551153]
[1735607802692,6.2322,189.5,189.37,15.07551153]
[1735607802903,6.2322,189.5,189.38,15.07551153]
[1735607803080,6.2322,189.5,189.4,15.07551153]
[1735607803389,6.2322,189.5,189.43,15.07551153]
[1735607805006,6.2322,189.5,189.44,15.86706028]
[1735607805172,6.2322,189.5,189.45,15.07551153]
[1735607806495,6.2322,189.55,189.48,15.07551153]
[1735607806700,6.2322,189.55,189.48,15.86680296]
[1735607807776,6.2322,189.55,189.48,15.07551153]
[1735607808087,6.2322,189.55,189.49,15.07551153]
[1735607808280,6.2322,189.55,189.5,15.07551153]
[1735607808501,6.2322,189.55,189.49,15.07551153]
[1735607810797,8.6061,189.67,189.57,20.0]
[1735607810999,8.6061,189.67,189.61,15.07551153]
[1735607811489,8.6061,189.67,189.57,15.07551153]
[1735607811685,23.776884,189.66,189.55,15.07551153]
[1735607812305,8.6061,189.67,189.57,24.11272515]
[1735607812500,8.6061,189.67,189.58,24.11272515]
[1735607812810,23.776884,189.66,189.56,24.11272515]
[1735607813313,8.6061,189.67,189.58,24.11272515]
[1735607814588,8.6061,189.67,189.59,24.11272515]
[1735607814994,8.6061,189.67,189.56,0.79103761]
[1735607814995,8.6061,189.67,189.58,24.11272515]
[1735607815195,8.6061,189.67,189.59,24.11272515]
[1735607820812,8.6061,189.67,189.63,24.11272515]
[1735607820995,8.4429,189.72,189.65,24.11272515]
[1735607821203,8.4429,189.72,189.66,24.11272515]
[1735607822721,8.4429,189.72,189.67,24.11272515]
[1735607823093,8.4429,189.72,189.67,24.00692515]
[1735607824239,2.0619,189.72,189.69,24.11272515]
[1735607824533,2.0619,189.76,189.7,24.11272515]
[1735607825294,2.0619,189.76,189.73,24.11272515]
[1735607825693,6.381,189.77,189.73,24.11272515]
[1735607825694,23.776884,189.8,189.73,24.11272515]
[1735607826014,23.776884,189.83,189.72,24.11272515]
[1735607826327,8.4961,189.84,189.75,24.11272515]
[1735607828024,8.4961,189.84,189.76,24.11272515]
[1735607829613,8.4961,189.84,189.77,24.11272515]
[1735607830214,8.4961,189.84,189.78,24.11272515]
[1735607830717,8.4961,189.84,189.77,24.11272515]
[1735607831105,8.4961,189.84,189.75,24.11272515]
[1735607832024,8.4961,189.84,189.77,24.11272515]
[1735607832206,8.4961,189.84,189.78,24.11272515]
[1735607832409,8.4961,189.84,189.79,24.11272515]
[1735607833112,8.4961,189.84,189.76,24.11272515]
[1735607833424,8.4961,189.84,189.7,13.1786]
[1735607833630,8.4961,189.84,189.73,24.11272515]
[1735607833921,8.4961,189.84,189.72,24.11272515]
[1735607834136,26.410784,189.83,189.71,24.11272515]
[1735607834427,26.410784,189.83,189.63,24.11272515]
[1735607834428,26.410784,189.83,189.73,15.04725301]
[1735607834627,8.4961,189.84,189.77,15.04725301]
[1735607834805,8.4961,189.84,189.79,15.04725301]
[1735607835721,8.4961,189.84,189.8,15.04725301]
[1735607836331,8.4961,189.84,189.79,15.04725301]
[1735607836703,8.4961,189.84,189.78,15.04725301]
[1735607837829,8.4961,189.84,189.8,15.04725301]
[1735607838032,8.4961,189.84,189.76,20.79006511]
[1735607838231,8.4961,189.84,189.77,15.04725301]
[1735607838523,43.776884,189.89,189.79,15.04725301]
[1735607838914,43.776884,189.89,189.8,15.04725301]
[1735607839314,43.776884,189.89,189.78,15.04725301]
[1735607839724,43.776884,189.89,189.79,15.04725301]
[1735607841446,6.4875,189.86,189.76,15.04725301]
[1735607841735,6.4875,189.8,189.69,15.04725301]
[1735607842030,23.776884,189.79,189.68,15.04725301]
[1735607843143,23.776884,189.79,189.69,15.04725301]
[1735607843818,6.4875,189.8,189.71,15.04725301]
[1735607844151,6.4875,189.8,189.76,15.04725301]
[1735607844735,6.4875,189.8,189.75,15.04725301]
[1735607845440,6.4875,189.8,189.76,15.04725301]
[1735607845919,5.9875,189.8,189.75,15.04725301]
[1735607846733,5.9875,189.8,189.72,15.04725301]
[1735607846915,5.9875,189.8,189.7,15.04725301]
[1735607847517,5.9875,189.8,189.69,15.04725301]
[1735607848232,26.411384,189.79,189.69,15.04725301]
[1735607848434,20.0,189.76,189.64,0.79045255]
[1735607848633,23.776884,189.75,189.65,15.04725301]
[1735607848948,6.4875,189.71,189.62,15.04725301]
[1735607849523,6.4875,189.71,189.63,15.04725301]
[1735607849850,6.4875,189.71,189.65,15.04725301]
[1735607850347,6.4875,189.71,189.65,24.09238007]
[1735607851047,6.4875,189.71,189.66,24.09238007]
[1735607851733,6.4875,189.77,189.68,24.09238007]
[1735607851933,6.4875,189.77,189.67,24.09238007]
[1735607852819,6.4875,189.77,189.64,24.88290222]
[1735607852820,23.776884,189.76,189.64,24.88290222]
[1735607853023,23.776884,189.76,189.64,24.09238007]
[1735607853248,23.776884,189.76,189.65,24.09238007]
[1735607854444,2.635,189.75,189.65,24.09238007]
[1735607854626,2.635,189.75,189.66,24.09238007]
[1735607855028,6.4875,189.77,189.69,24.09238007]
[1735607855342,6.4875,189.77,189.71,24.09238007]
[1735607855746,6.4875,189.77,189.73,24.09238007]
[1735607855950,6.232,189.82,189.75,24.09238007]
[1735607856749,6.232,189.82,189.74,24.88266229]
[1735607856956,6.232,189.82,189.75,24.09238007]
[1735607857542,6.232,189.82,189.74,24.09238007]
[1735607857847,6.232,189.82,189.75,24.09238007]
[1735607858421,6.232,189.82,189.74,24.09238007]
[1735607859247,6.232,189.82,189.75,24.09238007]
[1735607862252,26.411084,189.81,189.69,24.09238007]
[1735607862452,20.0,189.78,189.68,24.09238007]
[1735607862636,23.776884,189.77,189.67,24.88281232]
[1735607862942,2.0193,189.76,189.66,24.09238007]
[1735607863152,2.0193,189.76,189.65,24.09238007]
[1735607863959,2.0193,189.76,189.68,24.09238007]
[1735607864453,22.0193,189.76,189.69,24.88289962]
[1735607864832,2.0193,189.76,189.69,24.88289962]
[1735607865053,2.0193,189.76,189.7,24.09238007]
[1735607865261,2.0193,189.76,189.71,24.88280795]
[1735607865856,20.0,189.79,189.72,24.09238007]
[1735607866153,20.0,189.79,189.71,24.09238007]
[1735607866353,20.0,189.79,189.66,13.1808]
[1735607866354,2.0193,189.81,189.72,24.09238007]
[1735607866668,25.796184,189.81,189.69,20.0]
[1735607866953,25.796184,189.81,189.72,24.09238007]
[1735607870055,2.0193,189.81,189.72,24.09238007]
[1735607870240,2.0193,189.81,189.74,24.09238007]
[1735607870440,2.0193,189.81,189.76,24.09238007]
[1735607870660,2.0193,189.81,189.77,24.88259428]
[1735607870853,31.0292,189.86,189.78,24.09238007]
[1735607871035,31.0292,189.86,189.76,24.09238007]
[1735607872156,31.0292,189.86,189.77,24.09238007]
[1735607872466,31.0292,189.86,189.77,15.03938151]
[1735607872764,8.3957,189.86,189.78,15.03938151]
[1735607873260,8.3957,189.86,189.79,15.82945308]